bitfinex-derivatives/quotes_ETHF0:USTF0_20251118
["timestamp","ask_amount","ask_price","bid_price","bid_amount"]
[1763436604133,3.2078,2964.5,2963.7,0.3093]
[1763436604322,3.2078,2964.5,2964.0,2.18918177]
[1763436604525,3.2078,2964.5,2963.7,0.3093]
[1763436604932,3.2078,2964.8,2963.8,2.18918177]
[1763436605135,3.2078,2966.5,2964.7,3.2078]
[1763436605322,3.2078,2966.5,2964.6,0.3093]
[1763436605323,3.2078,2966.5,2965.2,3.2078]
[1763436605721,3.2078,2966.5,2964.6,0.3093]
[1763436605722,3.2078,2965.4,2964.6,3.5171]
[1763436606138,0.2109,2967.3,2962.8,11.2363]
[1763436606139,3.2078,2964.8,2963.7,3.5171]
[1763436606337,3.2078,2964.2,2963.7,0.3093]
[1763436606631,0.2109,2966.0,2963.7,3.5171]
[1763436606632,3.2078,2964.5,2963.7,3.5171]
[1763436606830,3.2078,2964.8,2963.7,3.5171]
[1763436607140,3.2078,2964.8,2962.9,2.98351286]
[1763436607141,3.2078,2963.9,2962.9,3.2078]
[1763436607440,3.2078,2963.3,2963.1,0.00506252]
[1763436607636,3.2078,2963.3,2962.9,0.00295404]
[1763436607837,3.20273748,2963.3,2963.0,0.3093]
[1763436608038,3.2078,2965.5,2963.2,3.2078]
[1763436608241,0.3089,2965.0,2964.4,3.2078]
[1763436608435,3.2078,2965.5,2964.7,3.2078]
[1763436608749,3.2078,2966.5,2965.3,3.2078]
[1763436609045,0.2109,2967.3,2965.9,3.2078]
[1763436609244,0.2109,2967.3,2966.5,3.2078]
[1763436609245,0.00385276,2967.2,2966.5,3.2078]
[1763436609540,3.2078,2966.3,2965.0,0.3093]
[1763436609735,3.17434444,2967.1,2965.0,0.3093]
[1763436609926,3.2078,2965.9,2965.2,3.2078]
[1763436610131,3.2078,2965.8,2965.1,3.2078]
[1763436610333,0.00506252,2965.7,2965.2,0.00506252]
[1763436610737,0.00506252,2965.7,2965.6,0.54691]
[1763436610936,3.2078,2967.2,2965.4,3.2078]
[1763436611132,3.2078,2967.6,2966.7,3.2078]
[1763436611337,0.00385276,2967.9,2965.2,6.74506252]
[1763436611338,0.00385276,2967.9,2967.1,3.2078]
[1763436611641,3.2078,2967.7,2966.7,3.2078]
[1763436611940,0.00506252,2967.5,2966.9,0.00506252]
[1763436612143,3.2078,2967.1,2966.3,3.2078]
[1763436612636,0.00385276,2967.0,2966.6,3.2078]
[1763436612843,0.00385276,2967.3,2966.6,3.2078]
[1763436613041,3.2078,2967.4,2966.6,3.2078]
[1763436613434,0.00506252,2967.5,2967.0,3.2078]
[1763436613633,0.00385276,2967.4,2967.0,3.2078]
[1763436613841,0.3089,2967.0,2965.9,3.2078]
[1763436614038,3.2078,2966.7,2965.9,3.2078]
[1763436614232,3.2078,2966.0,2965.3,3.2078]
[1763436614437,1.90766079,2966.0,2965.3,3.2078]
[1763436614639,0.00260204,2967.7,2966.5,0.54674]
[1763436614841,3.2078,2967.5,2966.4,0.54675]
[1763436615033,0.0064548,2967.7,2967.2,3.2078]
[1763436615235,0.00260204,2967.7,2967.5,3.2078]
[1763436615439,0.00385276,2967.6,2967.1,3.2078]
[1763436615640,0.00385276,2967.6,2967.1,3.21063788]
[1763436615836,0.00260204,2967.7,2967.1,3.21063788]
[1763436615837,0.00385276,2967.5,2967.1,3.21063788]
[1763436616340,0.00385276,2967.5,2967.4,3.2078]
[1763436616645,0.00385276,2967.5,2967.1,3.21063788]
[1763436616837,0.00260204,2967.7,2967.4,3.2078]
[1763436617340,0.00260204,2967.7,2967.4,7.12398]
[1763436617634,0.00260204,2967.7,2967.4,3.2078]
[1763436618055,0.00260204,2967.7,2967.5,0.54655]
[1763436618349,0.00506252,2967.9,2967.7,0.54652]
[1763436618544,0.00506252,2967.9,2967.8,3.2078]
[1763436618741,3.2078,2968.9,2968.0,0.54645]
[1763436618941,3.2078,2969.4,2968.7,0.54633]
[1763436619138,0.00385276,2969.9,2969.2,3.2078]
[1763436619450,3.2078,2969.4,2968.4,3.2078]
[1763436619653,3.21061324,2969.4,2968.4,3.2103997]
[1763436619845,0.00505348,2969.2,2968.6,0.00505348]
[1763436620040,0.00385276,2969.1,2968.7,3.2078]
[1763436620540,0.00281324,2969.4,2969.2,0.54625]
[1763436620744,3.2078,2970.5,2969.3,9.2078]
[1763436620947,0.00385276,2970.4,2969.2,3.2078]
[1763436621148,0.00385276,2970.4,2970.2,3.2078]
[1763436621349,0.00385276,2970.3,2969.5,3.2078]
[1763436621545,3.2078,2969.8,2969.0,3.2078]
[1763436621741,1.15836863,2972.2,2968.6,0.00505348]
[1763436621742,3.2078,2969.5,2968.6,0.00505348]
[1763436621947,0.00264442,2969.5,2968.6,3.21285348]
[1763436622244,0.00385276,2969.4,2968.9,3.2078]
[1763436622448,0.00385276,2969.4,2968.6,3.21285348]
[1763436622649,0.00385276,2969.3,2968.6,3.21285348]
[1763436623236,0.00385276,2969.2,2968.6,3.21285348]
[1763436623442,0.00385276,2969.4,2968.9,3.2078]
[1763436623642,3.2078,2969.0,2968.4,0.0025997]
[1763436624146,0.00385276,2968.9,2968.4,0.0025997]
[1763436624352,3.2078,2968.7,2968.4,0.0025997]
[1763436624752,0.00385276,2968.6,2968.4,0.0025997]
[1763436624944,3.2078,2969.4,2968.5,3.2078]
[1763436625252,3.2078,2969.4,2968.7,3.2078]
[1763436625253,0.00385276,2969.4,2968.7,3.2078]
[1763436625456,0.00385276,2969.3,2968.7,3.2078]
[1763436625647,0.00385276,2969.2,2968.5,3.2078]
[1763436626047,3.2078,2968.9,2968.4,0.0025997]
[1763436626555,0.00385276,2968.8,2968.4,0.0025997]
[1763436626750,3.2078,2968.9,2968.4,0.0025997]
[1763436627148,0.00385276,2968.8,2968.4,0.0025997]
[1763436627549,3.2078,2968.5,2968.3,0.00380042]
[1763436628160,0.00264442,2969.5,2968.3,0.00380042]
[1763436628161,3.2078,2969.2,2968.4,3.2078]
[1763436628345,3.2078,2968.9,2968.3,0.00380042]
[1763436628655,3.2078,2968.6,2968.3,0.00701688]
[1763436629445,0.00264442,2969.5,2968.3,3.21481688]
[1763436629644,0.00264442,2969.5,2969.3,0.54623]
[1763436629957,3.2078,2970.3,2969.2,3.2078]
[1763436630153,3.2078,2970.0,2969.5,3.2078]
[1763436630751,3.2078,2969.7,2968.7,3.2078]
[1763436631057,0.61745045,2970.0,2968.9,0.00505348]
[1763436631058,3.2078,2969.1,2968.9,0.00505348]
[1763436631451,3.8209,2969.1,2968.3,0.00321646]
[1763436631647,3.2078,2968.6,2968.3,0.00321646]
[1763436632251,3.2078,2968.6,2966.8,0.54669]
[1763436632252,9.2078,2968.6,2966.8,3.2078]
[1763436632451,3.2078,2967.8,2967.1,3.2078]
[1763436632651,3.2078,2967.8,2966.6,0.27620863]
[1763436632652,3.2078,2967.5,2967.2,0.00386004]
[1763436632961,0.00505348,2967.7,2967.2,0.00386004]
[1763436633147,0.00879751,2967.7,2967.2,0.00780845]
[1763436633761,0.00879751,2967.7,2966.7,3.7545]
[1763436633762,3.2078,2967.5,2966.7,3.2078]
[1763436633955,3.2078,2966.8,2966.0,3.2078]
[1763436634354,3.2078,2966.8,2964.4,2.98351286]
[1763436634551,3.2078,2966.2,2965.4,3.2078]
[1763436634947,0.00505348,2966.1,2965.5,0.57687223]
[1763436635151,3.2078,2965.8,2964.3,3.2078]
[1763436635353,3.2078,2965.0,2964.3,3.48630967]
[1763436635552,0.00505348,2966.1,2964.6,3.2078]
[1763436635553,3.2078,2965.6,2964.6,3.2078]
[1763436635756,3.2078,2965.3,2964.6,3.2078]
[1763436636056,3.2078,2965.6,2964.6,3.2078]
[1763436636354,3.2078,2965.3,2964.6,3.21087605]
[1763436636555,0.00344321,2965.6,2964.6,0.00307605]
[1763436636750,0.00344321,2965.6,2965.1,3.2078]
[1763436636950,3.2078,2965.5,2964.7,3.2078]
[1763436637547,0.00344321,2965.6,2964.6,0.00307605]
[1763436637548,3.2078,2964.8,2964.6,0.00307605]
[1763436637769,3.2078,2964.8,2963.9,3.2078]
[1763436637966,3.2078,2964.4,2963.6,3.2078]
[1763436638149,3.2078,2964.7,2963.7,0.03374218]
[1763436638354,0.00505348,2964.3,2963.7,0.03374218]
[1763436638657,3.21285348,2964.3,2963.7,0.0380664]
[1763436639460,3.2078,2964.0,2963.7,0.0380664]
[1763436639651,3.2078,2964.6,2964.2,0.54716]
[1763436639847,3.2078,2965.2,2964.5,3.2078]
[1763436640053,3.2078,2964.8,2964.0,0.5726]
[1763436640263,3.2078,2964.5,2963.7,0.0380664]
[1763436640455,3.2078,2964.5,2963.9,3.2078]
[1763436640651,3.21285348,2964.5,2963.9,3.21285348]
[1763436640856,3.2078,2964.1,2963.9,0.00505348]
[1763436641160,3.2078,2964.4,2963.9,0.00505348]
[1763436641366,3.2078,2964.4,2963.9,3.21285348]
[1763436641663,3.2078,2964.4,2963.9,0.00505348]
[1763436642662,3.2078,2964.0,2963.9,0.00505348]
[1763436643664,3.2078,2964.3,2963.9,0.00505348]
[1763436643865,3.2078,2964.0,2963.9,0.00505348]
[1763436644457,3.2078,2964.3,2963.9,0.00505348]
[1763436644660,3.2078,2964.0,2962.9,3.2078]
[1763436644867,3.2078,2963.6,2962.9,3.2078]
[1763436645068,0.00505348,2964.5,2962.9,3.2078]
[1763436645069,3.2078,2963.9,2962.9,3.2078]
[1763436645254,3.2078,2963.9,2963.0,0.54739]
[1763436645455,3.2078,2963.9,2963.1,3.2078]
[1763436645664,0.00505348,2964.5,2962.7,3.2078]
[1763436645665,3.2078,2963.6,2962.7,3.2078]
[1763436645866,3.2078,2963.3,2962.7,3.21056423]
[1763436646160,0.00406524,2963.3,2962.8,0.5726]
[1763436646554,3.2078,2962.9,2962.7,0.00276423]
[1763436647158,3.21186524,2963.3,2962.7,0.00276423]
[1763436647358,0.6131,2962.8,2962.7,0.00276423]
[1763436648067,6.6131,2962.8,2961.5,3.2078]
[1763436648264,3.2078,2962.0,2961.1,3.2078]
[1763436648461,3.2078,2961.7,2961.1,3.2078]
[1763436648766,0.5411,2961.9,2960.3,3.2078]
[1763436648767,3.2078,2961.2,2960.3,3.2078]
[1763436648961,3.21173428,2961.2,2960.3,3.21071669]
[1763436649168,3.2078,2961.0,2960.3,3.21071669]
[1763436649361,3.2078,2961.1,2960.3,0.00291669]
[1763436650064,0.00393428,2961.2,2960.3,0.00291669]
[1763436650065,3.2078,2960.8,2960.3,0.00291669]
[1763436650268,3.2078,2960.8,2959.5,3.2078]
[1763436650269,3.2078,2960.5,2959.5,3.2078]
[1763436650457,0.00506252,2960.8,2958.7,3.52046754]
[1763436650458,3.2078,2959.7,2958.7,3.52046754]
[1763436650663,3.2078,2959.7,2958.7,3.2415992]
[1763436650966,3.2078,2959.7,2958.9,3.2078]
[1763436651164,3.2078,2960.7,2959.2,3.2078]
[1763436651366,3.2078,2960.7,2960.0,3.2078]
[1763436651559,0.00506252,2960.8,2960.1,0.54793]
[1763436651760,3.2078,2960.7,2959.4,3.75584]
[1763436651966,0.00506252,2960.8,2960.1,3.2078]
[1763436652368,0.00506252,2960.8,2959.1,8.674]
[1763436652369,0.00506252,2960.8,2960.5,3.2078]
[1763436652568,0.00506252,2960.8,2959.8,3.2078]
[1763436652767,3.2078,2960.7,2959.2,3.21139227]
[1763436653065,3.2078,2959.4,2957.9,3.2078]
[1763436653270,0.6131,2959.0,2957.9,3.2078]
[1763436653462,3.2078,2959.5,2958.2,3.2078]
[1763436653660,0.00506252,2959.1,2958.4,3.2078]
[1763436653873,0.00506252,2959.1,2958.1,3.2078]
[1763436654167,0.00506252,2959.1,2958.4,3.2078]
[1763436654369,3.2078,2958.9,2958.1,0.0037624]
[1763436654575,3.2078,2958.3,2958.1,0.0037624]
[1763436654873,3.2078,2958.3,2956.5,2.98351286]
[1763436654874,3.2078,2958.3,2957.0,3.2078]
[1763436655061,3.17049168,2958.8,2957.0,3.2078]
[1763436655062,0.00507125,2957.9,2957.0,3.6187]
[1763436655373,0.00507125,2957.9,2957.4,3.2078]
[1763436655584,0.00507125,2957.9,2956.4,0.2716838]
[1763436655585,3.2078,2958.6,2957.7,3.2078]
[1763436655871,3.2078,2958.6,2957.9,3.2078]
[1763436656269,3.2078,2958.0,2957.7,0.00415711]
[1763436656475,3.8209,2958.0,2957.7,0.00415711]
[1763436656869,0.00507125,2958.1,2957.7,0.00415711]
[1763436657171,0.00507125,2958.1,2957.8,0.54835]
[1763436657379,0.00507125,2958.1,2957.9,3.75612]
[1763436657869,0.00507125,2958.1,2957.9,3.2078]
[1763436658070,0.00507125,2958.1,2957.7,0.00415711]
[1763436658768,0.00507125,2958.1,2957.9,3.2078]
[1763436658975,0.00507125,2958.1,2957.9,3.75613]
[1763436659174,0.00507125,2958.1,2957.9,7.13613]
[1763436659466,0.00264347,2959.1,2958.8,0.54816]
[1763436659667,0.00264347,2959.1,2958.9,0.54814]
[1763436659863,0.00264347,2959.1,2958.8,3.2078]
[1763436660062,3.2078,2958.9,2957.7,0.00415711]
[1763436660376,3.2078,2958.0,2956.1,3.2078]
[1763436660669,3.2078,2957.7,2955.8,3.2078]
[1763436660976,3.2078,2957.0,2956.5,0.5142]
[1763436661173,3.2078,2958.4,2956.8,0.54853]
[1763436661470,3.2078,2958.1,2957.4,3.2078]
[1763436661669,3.2078,2959.6,2957.8,3.2078]
[1763436661871,3.2078,2960.2,2959.0,3.2078]
[1763436662072,3.2078,2959.3,2958.3,0.5142]
[1763436662273,3.2078,2959.2,2958.3,0.51833713]
[1763436662479,0.00267952,2959.3,2958.6,3.2078]
[1763436662770,0.00267952,2959.3,2958.9,3.2078]
[1763436663174,0.00267952,2959.3,2958.8,3.21287125]
[1763436663478,0.00267952,2959.3,2958.3,0.51833713]
[1763436663479,3.2078,2958.9,2958.3,0.00413713]
[1763436663673,3.2078,2959.0,2958.3,0.00413713]
[1763436663869,3.2078,2958.4,2958.3,0.00413713]
[1763436664466,9.2078,2958.4,2958.1,0.00507125]
[1763436664662,3.2078,2958.4,2957.3,3.2078]
[1763436664866,3.2078,2958.3,2957.6,3.2078]
[1763436665072,3.2078,2958.6,2957.7,3.75616]
[1763436665375,3.2078,2958.3,2957.7,0.54836]
[1763436665574,3.2078,2958.3,2957.7,3.2078]
[1763436665872,0.00267952,2959.3,2957.7,3.2078]
[1763436665873,3.2078,2959.1,2958.7,0.54818]
[1763436666072,3.2078,2960.2,2959.4,0.54805]
[1763436666270,3.2078,2959.5,2957.8,4.37335051]
[1763436666465,0.5131,2960.0,2957.8,3.2078]
[1763436666466,3.2078,2958.6,2957.8,3.2078]
[1763436666773,3.2078,2958.9,2958.0,0.5142]
[1763436666964,3.2078,2959.9,2959.4,0.54805]
[1763436667173,0.00935451,2959.9,2959.8,3.2078]
[1763436667482,3.2078,2961.0,2960.2,0.5479]
[1763436667773,3.2078,2961.0,2960.2,3.2078]
[1763436667981,3.2078,2961.0,2960.5,3.2078]
[1763436668272,0.5131,2963.0,2961.0,0.5142]
[1763436668273,3.2078,2961.5,2961.0,0.5142]
[1763436668480,0.00507125,2961.0,2960.8,3.2078]
[1763436668670,0.00507125,2961.0,2960.8,3.75559]
[1763436668977,0.00382997,2961.5,2961.4,0.54769]
[1763436669182,3.2078,2963.0,2962.3,0.54751]
[1763436669377,3.2078,2963.7,2962.5,0.54747]
[1763436669675,3.2424,2963.7,2962.4,3.2078]
[1763436669875,3.2078,2963.4,2962.4,3.2078]
[1763436670186,0.00506218,2963.2,2963.0,0.5142]
[1763436670680,1.15836863,2965.2,2963.0,0.5142]
[1763436670681,3.2078,2964.1,2963.1,9.3744]
[1763436670893,2.88939394,2966.2,2963.1,9.3744]
[1763436670894,3.2078,2965.8,2964.0,3.2078]
[1763436671077,3.2078,2965.8,2964.4,3.2078]
[1763436671272,3.2078,2965.4,2964.4,3.2078]
[1763436671483,3.2078,2965.4,2963.1,4.878]
[1763436671484,3.2078,2965.7,2964.9,3.2078]
[1763436671782,3.2078,2965.5,2965.0,0.00506218]
[1763436671972,3.2078,2965.2,2964.3,3.2078]
[1763436672275,3.7209,2964.5,2963.0,3.2078]
[1763436672480,3.2078,2964.3,2963.3,3.2078]
[1763436672680,0.5131,2964.5,2962.0,0.5142]
[1763436672681,3.2078,2964.2,2963.0,3.2078]
[1763436672985,0.5131,2964.5,2963.7,3.2078]
[1763436672986,0.00506218,2963.9,2963.7,3.2078]
[1763436673182,0.00506218,2963.9,2963.4,3.2078]
[1763436673484,3.2078,2963.7,2963.3,0.00506218]
[1763436673671,0.00506218,2963.9,2963.3,0.00506218]
[1763436673871,0.00506218,2963.9,2963.3,3.21286218]
[1763436674091,3.21182733,2965.7,2963.8,3.2078]
[1763436674382,0.00402733,2965.7,2964.5,3.2078]
[1763436674580,0.00402733,2965.7,2963.7,2.617]
[1763436674581,3.21182733,2965.7,2965.0,3.2078]
[1763436674791,0.00402733,2965.7,2965.0,3.2078]
[1763436675185,0.00402733,2965.7,2963.7,2.617]
[1763436675186,0.00402733,2965.7,2965.6,3.2078]
[1763436675377,0.00402733,2965.7,2965.6,3.21075676]
[1763436675778,0.5131,2965.6,2965.1,0.00506218]
[1763436675987,3.2078,2965.3,2962.9,3.2078]
[1763436676290,3.2078,2964.6,2963.7,3.2078]
[1763436676591,3.2078,2964.9,2964.0,3.2078]
[1763436676793,3.2078,2965.2,2964.0,3.2104566]
[1763436676985,0.00506218,2964.7,2964.4,3.2078]
[1763436678404,0.5131,2965.6,2964.4,3.2078]
[1763436678606,0.00402733,2965.7,2964.7,3.2078]
[1763436678901,3.2078,2968.0,2965.4,3.2078]
[1763436679101,3.2078,2968.0,2967.1,3.2078]
[1763436679401,3.2078,2968.0,2965.6,0.5142]
[1763436679402,3.2078,2968.6,2967.4,3.2078]
[1763436679606,0.00506218,2968.3,2967.8,3.2078]
[1763436679803,0.00506218,2968.3,2968.2,3.2078]
[1763436682010,9.21286218,2968.3,2967.4,0.00279635]
[1763436682209,3.2078,2968.1,2967.4,0.00279635]
[1763436682411,0.00506218,2968.3,2967.6,3.2078]
[1763436682615,0.00506218,2968.3,2967.7,3.2078]
[1763436683103,0.00506218,2968.3,2968.0,3.2078]
[1763436683302,0.00506218,2968.3,2967.6,3.2078]
[1763436683702,0.00506218,2968.3,2968.0,3.2078]
[1763436683907,0.00506218,2968.3,2967.6,3.2078]
[1763436684104,0.00305146,2968.6,2968.2,3.2078]
[1763436684320,0.00305146,2968.6,2967.6,0.6868]
[1763436684321,3.2078,2970.0,2968.6,0.54635]
[1763436684611,0.5131,2971.1,2967.7,3.87918868]
[1763436684612,3.2078,2970.3,2969.3,3.2078]
[1763436684809,3.2078,2970.6,2969.9,3.2078]
[1763436685115,0.6462,2973.6,2970.2,3.2078]
[1763436685116,3.2078,2971.5,2970.2,3.2078]
[1763436685302,3.2078,2971.5,2970.0,0.6868]
[1763436685303,3.21285348,2971.5,2970.9,0.00505348]
[1763436685502,0.00900877,2971.5,2970.9,0.00505348]
[1763436685906,0.00900877,2971.5,2971.3,3.2078]
[1763436686104,8.77e-06,2971.5,2971.3,3.2078]
[1763436686310,3.2078,2973.2,2971.5,0.54582]
[1763436686608,3.2078,2973.5,2972.9,3.2078]
[1763436686824,3.2078,2973.5,2972.6,3.2078]
[1763436687119,0.0346,2973.7,2972.7,3.2078]
[1763436687408,0.03791321,2973.7,2972.7,3.63662745]
[1763436687606,0.03791321,2973.7,2973.2,3.2078]
[1763436687806,0.03791321,2973.7,2973.5,3.2078]
[1763436688198,0.03791321,2973.7,2972.8,3.71478131]
[1763436688199,1.321e-05,2973.7,2973.3,3.2078]
[1763436688400,3.2078,2974.2,2973.6,0.7462]
[1763436688613,60.761,2978.3,2973.6,0.7462]
[1763436688614,3.2078,2975.2,2974.0,3.2078]
[1763436688800,0.7227,2977.2,2975.1,3.2078]
[1763436689000,0.7227,2977.2,2976.1,3.2078]
[1763436689204,3.2078,2977.1,2976.0,3.2078]
[1763436689408,0.00272484,2977.1,2976.5,3.2078]
[1763436689798,0.00272484,2977.1,2976.9,3.2078]
[1763436690009,0.00272484,2977.1,2976.9,6.5662]
[1763436690210,0.0346,2978.7,2977.0,9.50180483]
[1763436690413,0.0346,2978.7,2978.2,3.2078]
[1763436690605,3.93327215,2978.3,2977.1,3.2078]
[1763436690908,3.2078,2977.2,2976.1,3.2078]
[1763436691109,3.2078,2976.3,2975.0,3.2078]
[1763436691307,3.2078,2976.0,2975.3,3.2078]
[1763436691610,3.2078,2976.3,2975.4,0.00503618]
[1763436691807,0.00277215,2975.2,2974.2,3.83698126]
[1763436692114,0.7227,2975.7,2973.5,3.2078]
[1763436692115,3.9305,2974.4,2973.5,3.2078]
[1763436692412,0.72698613,2974.4,2973.8,3.2078]
[1763436692803,0.72975828,2974.4,2973.9,3.2078]
[1763436693104,0.00929324,2974.4,2974.2,3.2078]
[1763436693308,0.7227,2975.7,2974.2,3.2078]
[1763436693614,0.7227,2977.0,2975.5,3.2078]
[1763436693812,3.2078,2976.9,2975.9,3.2078]
[1763436694000,3.2078,2976.9,2974.2,3.36]
[1763436694001,3.2078,2976.6,2975.8,3.2078]
[1763436694506,3.21163689,2976.6,2975.9,0.00503618]
[1763436694815,3.2078,2976.2,2975.9,0.00503618]
[1763436695116,0.00383689,2976.6,2975.9,0.00503618]
[1763436695311,0.00383689,2976.6,2976.1,3.2078]
[1763436695518,0.7227,2977.0,2976.3,3.2078]
[1763436695808,3.2078,2977.7,2976.7,3.2078]
[1763436696012,3.2078,2978.1,2977.4,3.2078]
[1763436696205,0.72547215,2978.3,2977.7,3.2078]
[1763436696513,3.2078,2978.6,2977.9,3.2078]
[1763436696721,0.00293068,2978.3,2978.1,3.2078]
[1763436697011,3.2078,2978.9,2978.1,3.2078]
[1763436698015,0.03855864,2978.7,2978.4,3.2078]
[1763436698315,0.03855864,2978.7,2977.9,0.00270112]
[1763436698316,0.03855864,2978.7,2978.1,3.2078]
[1763436698519,3.2078,2978.4,2977.9,0.00270112]
[1763436698812,0.03855864,2978.7,2978.2,3.2078]
[1763436699020,3.2078,2980.2,2978.5,6.5646]
[1763436699313,0.7227,2980.9,2979.8,3.2078]
[1763436699517,3.2078,2981.4,2980.5,3.2078]
[1763436699716,3.2078,2981.7,2981.0,3.2078]
[1763436699917,3.2078,2981.7,2981.0,0.00359233]
[1763436699918,3.2078,2981.4,2981.0,0.00359233]
[1763436700609,0.00354531,2981.7,2981.0,3.21139233]
[1763436700811,0.00354531,2981.7,2981.0,6.56499233]
[1763436701116,3.2078,2983.2,2981.6,3.2078]
[1763436701315,3.2078,2983.2,2982.1,0.00503618]
[1763436701625,3.2078,2982.5,2982.1,0.00503618]
[1763436702118,3.2078,2983.1,2982.1,3.21283618]
[1763436702316,3.21016003,2983.1,2982.1,3.21283618]
[1763436702518,0.00236003,2983.1,2982.5,3.2078]
[1763436702716,0.00236003,2983.1,2982.8,3.2078]
[1763436702914,0.00236003,2983.1,2982.1,0.00503618]
[1763436702915,3.2078,2982.9,2982.1,0.00503618]
[1763436703222,3.2078,2982.7,2982.1,0.00503618]
[1763436703410,3.2078,2982.4,2982.1,0.00503618]
[1763436704019,0.00236003,2983.1,2982.3,3.2078]
[1763436704320,0.7227,2984.8,2983.0,3.2078]
[1763436704321,3.2078,2983.9,2983.0,3.2078]
[1763436704508,3.2078,2983.9,2982.4,3.79193353]
[1763436704509,3.2078,2983.6,2982.4,3.79193353]
[1763436704713,0.7227,2984.8,2982.4,3.79193353]
[1763436704714,3.2078,2983.3,2983.2,0.00502698]
[1763436705009,0.7227,2983.2,2982.0,3.2078]
[1763436705213,3.2078,2982.6,2982.0,0.0026717]
[1763436705416,3.2078,2983.1,2982.0,0.0026717]
[1763436705613,0.72692306,2983.2,2982.1,3.2078]
[1763436705614,3.93472306,2983.2,2982.1,3.2078]
[1763436705816,3.2078,2983.9,2983.1,3.2078]
[1763436706117,0.00499631,2983.8,2983.2,0.00502698]
[1763436706317,3.2078,2983.5,2983.2,0.00502698]
[1763436706714,6.0,2983.4,2982.0,0.0026717]
[1763436706916,3.2078,2982.6,2982.0,0.0026717]
[1763436707123,0.00359726,2983.4,2982.5,3.2078]
[1763436707716,3.9305,2983.2,2982.0,3.2104717]
[1763436707922,0.7227,2982.0,2981.0,3.2078]
[1763436708117,3.2078,2982.2,2981.2,0.00502698]
[1763436708316,3.2078,2982.2,2981.3,3.2078]
[1763436708524,0.00502698,2982.0,2981.4,3.2078]
[1763436708735,3.21282698,2982.0,2981.2,0.00502698]
[1763436708918,0.72772698,2982.0,2981.3,3.2078]
[1763436709114,3.2078,2981.5,2981.2,0.0091998]
[1763436709322,3.93552698,2982.0,2981.2,0.0091998]
[1763436709537,3.2078,2981.7,2981.2,0.0091998]
[1763436709725,3.93552698,2982.0,2981.3,3.2078]
[1763436709921,3.93552698,2982.0,2981.2,0.0091998]
[1763436710117,3.93552698,2982.0,2978.2,3.54687287]
[1763436710118,3.2078,2981.4,2979.5,3.2078]
[1763436710327,3.2078,2980.3,2979.5,3.2078]
[1763436710525,3.2078,2979.9,2979.2,3.2078]
[1763436710828,3.2078,2980.0,2979.5,3.2078]
[1763436711124,3.2078,2980.9,2979.9,3.2078]
[1763436711325,0.00362109,2980.9,2980.3,3.2078]
[1763436711518,3.4287,2983.2,2980.6,3.2078]
[1763436711519,3.2078,2983.0,2980.6,3.2078]
[1763436711717,0.00503575,2982.1,2981.5,3.2078]
[1763436711932,0.00503575,2982.1,2980.0,4.28501891]
[1763436711933,0.00503575,2982.1,2981.3,3.2078]
[1763436712226,0.00503575,2982.1,2981.5,0.00503575]
[1763436712424,0.00503575,2982.1,2981.9,3.2078]
[1763436712630,0.00503575,2982.1,2981.5,0.00861686]
[1763436712631,0.00911198,2982.1,2981.7,3.2078]
[1763436712825,0.7227,2982.0,2981.5,0.00861686]
[1763436713128,0.00911198,2982.1,2981.6,3.2078]
[1763436713328,3.9305,2982.0,2981.5,0.00861686]
[1763436713531,0.00911198,2982.1,2981.5,3.21641686]
[1763436713829,3.2078,2981.6,2981.5,0.00861686]
[1763436714026,3.2078,2981.6,2981.5,1.686e-05]
[1763436714230,9.2078,2981.6,2980.2,3.2078]
[1763436714532,3.2078,2980.9,2979.8,3.2078]
[1763436714925,0.7227,2982.0,2980.1,0.00503575]
[1763436714926,3.2078,2980.5,2980.1,0.00503575]
[1763436715129,0.7227,2982.0,2980.1,0.00852039]
[1763436715130,0.00503575,2980.6,2980.1,0.00852039]
[1763436715833,0.7227,2982.0,2980.5,0.54418]
[1763436716125,0.00407623,2982.1,2981.9,3.2078]
[1763436716326,0.00407623,2982.1,2981.2,0.54404]
[1763436716533,3.2078,2982.7,2981.8,3.2078]
[1763436716725,0.00503575,2982.5,2982.0,0.00503575]
[1763436717229,0.00503575,2982.5,2982.1,3.2078]
[1763436717532,3.2078,2982.3,2982.0,0.00503575]
[1763436717734,3.2078,2982.3,2981.1,3.2078]
[1763436717928,3.2078,2982.0,2981.4,3.2078]
[1763436718129,0.00893261,2982.5,2981.7,3.2078]
[1763436718431,4.0429,2982.0,2980.2,3.83888253]
[1763436718634,3.2078,2980.7,2980.0,3.2078]
[1763436718822,3.21283575,2980.7,2980.1,0.00852039]
[1763436719229,3.2078,2981.2,2980.4,3.2078]
[1763436719530,3.2078,2980.6,2980.1,0.00852039]
[1763436719736,3.2078,2981.1,2980.3,3.2078]
[1763436720330,0.00503575,2981.0,2980.2,3.2078]
[1763436720527,0.00503575,2981.0,2980.3,3.2078]
[1763436720833,0.00503575,2981.0,2973.8,9.59046628]
[1763436720834,3.2078,2980.4,2979.0,3.2078]
[1763436721033,3.2078,2980.5,2979.8,3.2078]
[1763436721238,0.8351,2986.8,2980.8,0.7921]
[1763436721239,3.2078,2981.8,2980.8,0.7921]
[1763436721433,3.2078,2982.7,2981.4,3.2078]
[1763436721636,0.7227,2983.2,2980.8,0.7921]
[1763436721637,3.9305,2983.2,2982.4,0.54382]
[1763436721830,0.83847965,2983.2,2982.5,3.2078]
[1763436722032,0.83847965,2983.2,2982.4,0.00423426]
[1763436722234,0.83847965,2983.2,2982.9,3.2078]
[1763436722433,0.00503575,2983.1,2982.9,3.2078]
[1763436722833,0.00503575,2983.1,2982.9,9.75153]
[1763436723031,1.54e-05,2983.2,2983.1,0.54371]
[1763436723325,1.54e-05,2983.2,2982.5,0.00503575]
[1763436723326,0.8351154,2983.2,2982.5,0.00503575]
[1763436723530,3.2078,2982.9,2982.5,0.00503575]
[1763436723730,3.2078,2982.6,2981.6,3.2078]
[1763436723929,6.8351154,2983.2,2981.8,3.2078]
[1763436723930,3.2078,2982.9,2981.8,3.2078]